[Event "Early-Titled-Tuesday-Blitz-October-03-2023"]
[Site "Chess.com"]
[Date "2023.10.03"]
[Round "6"]
[White "rachidhuilda"]
[Black "APOKALIPSA13"]
[Result "1-0"]
[WhiteElo "2385"]
[BlackElo "2163"]
[TimeControl "180+1"]
[EndTime "9:07:26 PDT"]
[Termination "rachidhuilda won by resignation"]

1. d4 {[%clk 0:02:34.4]} 1... e5 {[%clk 0:03:00.9]} 2. dxe5 {[%clk 0:02:34.1]}
2... Nc6 {[%clk 0:02:59.9]} 3. Nf3 {[%clk 0:02:34.1]} 3... Qe7 {[%clk
0:02:10.3]} 4. Bf4 {[%clk 0:02:29.6]} 4... Qb4+ {[%clk 0:02:09.7]} 5. Bd2 {[%clk
0:02:28.9]} 5... Qxb2 {[%clk 0:02:09.9]} 6. Nc3 {[%clk 0:02:29.5]} 6... Bb4
{[%clk 0:02:10.3]} 7. Rb1 {[%clk 0:02:29]} 7... Qxc3 {[%clk 0:02:10.8]} 8. Bxc3
{[%clk 0:02:27.7]} 8... Bxc3+ {[%clk 0:02:11.7]} 9. Nd2 {[%clk 0:02:27.7]} 9...
Bxe5 {[%clk 0:02:12.6]} 10. e4 {[%clk 0:02:27]} 10... Nf6 {[%clk 0:02:13.1]} 11.
Bd3 {[%clk 0:02:26.9]} 11... O-O {[%clk 0:02:13.1]} 12. O-O {[%clk 0:02:27.4]}
12... Rd8 {[%clk 0:02:12]} 13. Nc4 {[%clk 0:02:26.6]} 13... Bc3 {[%clk 0:02:12]}
14. Rb3 {[%clk 0:02:25.9]} 14... Bd4 {[%clk 0:02:12.2]} 15. c3 {[%clk
0:02:24.2]} 15... Bc5 {[%clk 0:02:11.1]} 16. e5 {[%clk 0:02:22]} 16... d5 {[%clk
0:02:08.8]} 17. Ne3 {[%clk 0:01:54.2]} 17... Nxe5 {[%clk 0:02:07.6]} 18. Bb1
{[%clk 0:01:54.2]} 18... Bb6 {[%clk 0:01:55.8]} 19. h3 {[%clk 0:01:54.4]} 19...
c6 {[%clk 0:01:50.8]} 20. a4 {[%clk 0:01:48.1]} 20... Be6 {[%clk 0:01:44]} 21.
Rb2 {[%clk 0:01:45.6]} 21... d4 {[%clk 0:01:43]} 22. cxd4 {[%clk 0:01:41.3]}
22... Rxd4 {[%clk 0:01:43.9]} 23. Qc2 {[%clk 0:01:38.5]} 23... Rad8 {[%clk
0:01:39.4]} 24. a5 {[%clk 0:01:33.3]} 24... Bxa5 {[%clk 0:01:22.9]} 25. Rxb7
{[%clk 0:01:33.1]} 25... Nc4 {[%clk 0:01:12.9]} 26. Rxa7 {[%clk 0:01:16.2]}
26... Bb6 {[%clk 0:01:09.2]} 27. Rb7 {[%clk 0:01:10.4]} 27... Nxe3 {[%clk
0:01:03.7]} 28. fxe3 {[%clk 0:01:08.8]} 28... Rd2 {[%clk 0:00:55]} 29. Qxd2
{[%clk 0:00:52.2]} 29... Rxd2 {[%clk 0:00:53.5]} 30. Rxb6 {[%clk 0:00:52.3]}
30... Kf8 {[%clk 0:00:41.2]} 31. Rxc6 {[%clk 0:00:51.7]} 31... Rxg2+ {[%clk
0:00:37.9]} 32. Kxg2 {[%clk 0:00:49.9]} 32... Bd5+ {[%clk 0:00:38.3]} 33. Kg3
{[%clk 0:00:49.5]} 33... Bxc6 {[%clk 0:00:38.5]} 34. Rc1 {[%clk 0:00:46.9]}
34... Bd5 {[%clk 0:00:36.8]} 35. Kf4 {[%clk 0:00:45.3]} 35... Be6 {[%clk
0:00:33.6]} 36. h4 {[%clk 0:00:41.1]} 36... Nd5+ {[%clk 0:00:28.2]} 37. Kf3
{[%clk 0:00:37.3]} 37... g6 {[%clk 0:00:27.3]} 38. Be4 {[%clk 0:00:36]} 38...
Nf6 {[%clk 0:00:24.9]} 39. Bb7 {[%clk 0:00:32.3]} 39... Ke7 {[%clk 0:00:24.4]}
40. Kf4 {[%clk 0:00:27.5]} 40... h6 {[%clk 0:00:18.3]} 41. Bf3 {[%clk
0:00:27.4]} 41... Kd6 {[%clk 0:00:17.8]} 42. e4 {[%clk 0:00:27.1]} 42... Nd7
{[%clk 0:00:16.4]} 43. Rd1+ {[%clk 0:00:27.4]} 43... Ke7 {[%clk 0:00:16.3]} 44.
e5 {[%clk 0:00:26.8]} 44... f6 {[%clk 0:00:15.5]} 45. exf6+ {[%clk 0:00:23.5]}
45... Kxf6 {[%clk 0:00:16.4]} 46. Rd6 {[%clk 0:00:22.4]} 46... Ke7 {[%clk
0:00:13.8]} 47. Ra6 {[%clk 0:00:22.9]} 47... Nf6 {[%clk 0:00:13]} 48. Ra7+
{[%clk 0:00:22.1]} 48... Kd6 {[%clk 0:00:13.2]} 49. Ra6+ {[%clk 0:00:22.5]}
49... Ke7 {[%clk 0:00:13.3]} 50. Ra7+ {[%clk 0:00:19]} 50... Kf8 {[%clk
0:00:12.7]} 51. Ke5 {[%clk 0:00:16.8]} 51... Bg4 {[%clk 0:00:12.3]} 52. Kxf6
{[%clk 0:00:15.4]} 52... Bxf3 {[%clk 0:00:12.6]} 53. Kxg6 {[%clk 0:00:15.2]}
53... h5 {[%clk 0:00:12.5]} 54. Kf6 {[%clk 0:00:15]} 54... Bg4 {[%clk
0:00:12.1]} 55. Ra8+ {[%clk 0:00:13.5]} 1-0

[Event "Early-Titled-Tuesday-Blitz-October-03-2023"]
[Site "Chess.com"]
[Date "2023.10.03"]
[Round "6"]
[White "ContrVersia"]
[Black "CheckThis4"]
[Result "1/2-1/2"]
[WhiteElo "2893"]
[BlackElo "2705"]
[TimeControl "180+1"]
[EndTime "9:07:27 PDT"]
[Termination "Game drawn by repetition"]

1. Nf3 {[%clk 0:02:58.5]} 1... g6 {[%clk 0:02:57.2]} 2. c4 {[%clk 0:02:58.4]}
2... Bg7 {[%clk 0:02:57.2]} 3. d4 {[%clk 0:02:59.1]} 3... Nf6 {[%clk 0:02:56.5]}
4. g3 {[%clk 0:02:58.9]} 4... d5 {[%clk 0:02:51.2]} 5. cxd5 {[%clk 0:02:58.6]}
5... Nxd5 {[%clk 0:02:51.5]} 6. Bg2 {[%clk 0:02:58.7]} 6... Nb6 {[%clk
0:02:51.3]} 7. O-O {[%clk 0:02:57.5]} 7... Nc6 {[%clk 0:02:47.1]} 8. e3 {[%clk
0:02:54.2]} 8... O-O {[%clk 0:02:46.4]} 9. Nc3 {[%clk 0:02:54.1]} 9... Re8
{[%clk 0:02:40]} 10. Re1 {[%clk 0:02:52.2]} 10... a5 {[%clk 0:02:36.7]} 11. h3
{[%clk 0:02:45.5]} 11... e5 {[%clk 0:02:29.1]} 12. d5 {[%clk 0:02:40.9]} 12...
Nb4 {[%clk 0:02:18.1]} 13. e4 {[%clk 0:02:40]} 13... c6 {[%clk 0:02:14]} 14. a3
{[%clk 0:02:32.5]} 14... Na6 {[%clk 0:02:11.1]} 15. Bg5 {[%clk 0:02:33.1]} 15...
Bf6 {[%clk 0:02:00.2]} 16. Bxf6 {[%clk 0:01:57.6]} 16... Qxf6 {[%clk 0:01:59.8]}
17. dxc6 {[%clk 0:01:57]} 17... bxc6 {[%clk 0:01:55.4]} 18. Rc1 {[%clk
0:01:57.1]} 18... Nc4 {[%clk 0:01:48.6]} 19. Qe2 {[%clk 0:01:54.9]} 19... Be6
{[%clk 0:01:46.3]} 20. Na4 {[%clk 0:01:54.9]} 20... Nd6 {[%clk 0:01:27.8]} 21.
Rxc6 {[%clk 0:01:46.2]} 21... Bd7 {[%clk 0:01:22.6]} 22. Rxa6 {[%clk 0:01:46.1]}
22... Rxa6 {[%clk 0:01:21.6]} 23. Qxa6 {[%clk 0:01:45.7]} 23... Bxa4 {[%clk
0:01:22.2]} 24. Qxa5 {[%clk 0:01:41.4]} 24... Bc2 {[%clk 0:01:18.6]} 25. Nd2
{[%clk 0:01:34.7]} 25... Rc8 {[%clk 0:01:10.5]} 26. Qa6 {[%clk 0:01:17.3]} 26...
h5 {[%clk 0:01:07.3]} 27. Nf1 {[%clk 0:01:07.6]} 27... Kg7 {[%clk 0:01:01.3]}
28. Qe2 {[%clk 0:00:40.6]} 28... Bb3 {[%clk 0:00:52]} 29. Ne3 {[%clk 0:00:35.7]}
29... Be6 {[%clk 0:00:44.3]} 30. h4 {[%clk 0:00:32.3]} 30... Rb8 {[%clk
0:00:36.4]} 31. Rd1 {[%clk 0:00:30.7]} 31... Nb5 {[%clk 0:00:35.9]} 32. Nd5
{[%clk 0:00:19.8]} 32... Bxd5 {[%clk 0:00:35.4]} 33. exd5 {[%clk 0:00:20.1]}
33... Nd4 {[%clk 0:00:35.6]} 34. Qd2 {[%clk 0:00:20.1]} 34... Rb3 {[%clk
0:00:31.3]} 35. Kh1 {[%clk 0:00:08.7]} 35... Qb6 {[%clk 0:00:28.2]} 36. Qe1
{[%clk 0:00:05.3]} 36... f6 {[%clk 0:00:26]} 37. f4 {[%clk 0:00:05.4]} 37...
exf4 {[%clk 0:00:14.8]} 38. Qe7+ {[%clk 0:00:04.5]} 38... Kh6 {[%clk 0:00:15.1]}
39. Qf8+ {[%clk 0:00:04.6]} 39... Kh7 {[%clk 0:00:14.8]} 40. Re1 {[%clk
0:00:05]} 40... Nf5 {[%clk 0:00:14.1]} 41. gxf4 {[%clk 0:00:02.4]} 41... Qf2
{[%clk 0:00:11.5]} 42. Qf7+ {[%clk 0:00:02.7]} 42... Kh6 {[%clk 0:00:11.4]} 43.
Qf8+ {[%clk 0:00:03.4]} 43... Kh7 {[%clk 0:00:11.9]} 44. Rc1 {[%clk 0:00:02.3]}
44... Qxh4+ {[%clk 0:00:11.3]} 45. Kg1 {[%clk 0:00:02.9]} 45... Rb7 {[%clk
0:00:11]} 46. d6 {[%clk 0:00:02.6]} 46... Qxf4 {[%clk 0:00:10.3]} 47. Rf1 {[%clk
0:00:02.9]} 47... Qe3+ {[%clk 0:00:10.3]} 48. Kh2 {[%clk 0:00:03.5]} 48... Qe5+
{[%clk 0:00:10.4]} 49. Kg1 {[%clk 0:00:03.5]} 49... Qe3+ {[%clk 0:00:10.5]} 50.
Kh2 {[%clk 0:00:03.6]} 50... Qe5+ {[%clk 0:00:10.7]} 51. Kg1 {[%clk 0:00:03.4]}
51... Qe3+ {[%clk 0:00:10.9]} 1/2-1/2

[Event "Early-Titled-Tuesday-Blitz-October-03-2023"]
[Site "Chess.com"]
[Date "2023.10.03"]
[Round "6"]
[White "NovozhilovSemen"]
[Black "Elsa167"]
[Result "0-1"]
[WhiteElo "2588"]
[BlackElo "2901"]
[TimeControl "180+1"]
[EndTime "9:07:27 PDT"]
[Termination "Elsa167 won by checkmate"]

1. d4 {[%clk 0:03:00.9]} 1... Nf6 {[%clk 0:02:59.5]} 2. Nf3 {[%clk 0:03:00.7]}
2... g6 {[%clk 0:02:59.6]} 3. Nc3 {[%clk 0:03:00.5]} 3... d5 {[%clk 0:02:58.9]}
4. Bf4 {[%clk 0:03:00.6]} 4... Bg7 {[%clk 0:02:57.3]} 5. Nb5 {[%clk 0:03:00.1]}
5... Na6 {[%clk 0:02:57.2]} 6. e3 {[%clk 0:03:00.2]} 6... c6 {[%clk 0:02:51.9]}
7. Nc3 {[%clk 0:02:59.7]} 7... Nb8 {[%clk 0:02:52.2]} 8. Be2 {[%clk 0:02:59]}
8... O-O {[%clk 0:02:49.2]} 9. Ne5 {[%clk 0:02:58.4]} 9... Nbd7 {[%clk
0:02:47.3]} 10. h4 {[%clk 0:02:58.3]} 10... Nxe5 {[%clk 0:02:43.1]} 11. Bxe5
{[%clk 0:02:58.3]} 11... h5 {[%clk 0:02:36.2]} 12. Bxf6 {[%clk 0:02:55.9]} 12...
exf6 {[%clk 0:02:18.5]} 13. g4 {[%clk 0:02:54.1]} 13... hxg4 {[%clk 0:02:18.5]}
14. Bxg4 {[%clk 0:02:53.8]} 14... f5 {[%clk 0:02:18.8]} 15. Bf3 {[%clk
0:02:44.8]} 15... f4 {[%clk 0:02:10.2]} 16. Qd2 {[%clk 0:02:40.9]} 16... Qf6
{[%clk 0:02:01.2]} 17. Be2 {[%clk 0:02:38]} 17... Bh6 {[%clk 0:01:55.5]} 18. e4
{[%clk 0:02:10.6]} 18... dxe4 {[%clk 0:01:37.5]} 19. Nxe4 {[%clk 0:02:11.5]}
19... Qe7 {[%clk 0:01:37.4]} 20. f3 {[%clk 0:02:03.8]} 20... Bf5 {[%clk
0:01:34.4]} 21. Nc3 {[%clk 0:02:03]} 21... Rad8 {[%clk 0:01:25]} 22. O-O-O
{[%clk 0:01:57.8]} 22... Qe3 {[%clk 0:01:14]} 23. h5 {[%clk 0:01:45.1]} 23...
Qxd2+ {[%clk 0:01:11.6]} 24. Rxd2 {[%clk 0:01:46]} 24... Bg7 {[%clk 0:00:57.6]}
25. hxg6 {[%clk 0:01:42.5]} 25... fxg6 {[%clk 0:00:58.5]} 26. Bc4+ {[%clk
0:01:41.2]} 26... Rf7 {[%clk 0:00:55]} 27. Bxf7+ {[%clk 0:01:35.3]} 27... Kxf7
{[%clk 0:00:55.9]} 28. Rhd1 {[%clk 0:01:35.2]} 28... g5 {[%clk 0:00:51.7]} 29.
Ne2 {[%clk 0:01:07.1]} 29... Be6 {[%clk 0:00:46.6]} 30. b3 {[%clk 0:01:01.9]}
30... Bd5 {[%clk 0:00:46.7]} 31. Rf1 {[%clk 0:01:00]} 31... b5 {[%clk
0:00:38.4]} 32. Nc3 {[%clk 0:00:52.2]} 32... Be6 {[%clk 0:00:38.6]} 33. Ne4
{[%clk 0:00:51.6]} 33... Kg6 {[%clk 0:00:33.9]} 34. Rg2 {[%clk 0:00:37.7]} 34...
g4 {[%clk 0:00:31.9]} 35. fxg4 {[%clk 0:00:37.4]} 35... Bxd4 {[%clk 0:00:32]}
36. Rh2 {[%clk 0:00:23]} 36... Be3+ {[%clk 0:00:21.2]} 37. Kb1 {[%clk
0:00:22.8]} 37... Bxg4 {[%clk 0:00:17.3]} 38. a4 {[%clk 0:00:21.1]} 38... bxa4
{[%clk 0:00:15.7]} 39. bxa4 {[%clk 0:00:22]} 39... Kf5 {[%clk 0:00:10.6]} 40.
Nf2 {[%clk 0:00:18.8]} 40... Be2 {[%clk 0:00:06.1]} 41. Re1 {[%clk 0:00:11.9]}
41... Rb8+ {[%clk 0:00:06.1]} 42. Ka1 {[%clk 0:00:03.2]} 42... Bd4+ {[%clk
0:00:06.5]} 43. Ka2 {[%clk 0:00:01.5]} 43... Bc4+ {[%clk 0:00:06.9]} 44. Ka3
{[%clk 0:00:02.4]} 44... Bb2# {[%clk 0:00:07.1]} 0-1

[Event "Early-Titled-Tuesday-Blitz-October-03-2023"]
[Site "Chess.com"]
[Date "2023.10.03"]
[Round "6"]
[White "grandemestregringo"]
[Black "Gurvich_Vitaly"]
[Result "0-1"]
[WhiteElo "2536"]
[BlackElo "2720"]
[TimeControl "180+1"]
[EndTime "9:07:28 PDT"]
[Termination "Gurvich_Vitaly won on time"]

1. e4 {[%clk 0:03:00.9]} 1... c5 {[%clk 0:02:55.1]} 2. Nf3 {[%clk 0:02:51.9]}
2... Nc6 {[%clk 0:02:52.2]} 3. d4 {[%clk 0:02:51.1]} 3... cxd4 {[%clk 0:02:52]}
4. Nxd4 {[%clk 0:02:47.9]} 4... e5 {[%clk 0:02:51.9]} 5. Nb5 {[%clk 0:02:40.8]}
5... d6 {[%clk 0:02:50.3]} 6. c4 {[%clk 0:02:40.1]} 6... Be7 {[%clk 0:02:44.9]}
7. N1c3 {[%clk 0:02:36.6]} 7... a6 {[%clk 0:02:45]} 8. Na3 {[%clk 0:02:35.4]}
8... Nf6 {[%clk 0:02:45.5]} 9. Nd5 {[%clk 0:02:30.3]} 9... Nxe4 {[%clk
0:02:39.8]} 10. Bd3 {[%clk 0:02:24]} 10... Nf6 {[%clk 0:02:38.2]} 11. O-O {[%clk
0:02:21.3]} 11... Nxd5 {[%clk 0:02:28.6]} 12. cxd5 {[%clk 0:02:21]} 12... Nb8
{[%clk 0:02:26.9]} 13. Nc4 {[%clk 0:02:20.4]} 13... Nd7 {[%clk 0:02:25.9]} 14.
a4 {[%clk 0:02:17.9]} 14... O-O {[%clk 0:02:22.8]} 15. Be3 {[%clk 0:02:16.3]}
15... f5 {[%clk 0:01:20]} 16. f3 {[%clk 0:02:12.7]} 16... Nf6 {[%clk 0:01:19.7]}
17. Nb6 {[%clk 0:02:09.7]} 17... Rb8 {[%clk 0:01:16.6]} 18. Rc1 {[%clk
0:01:59.5]} 18... e4 {[%clk 0:01:13.2]} 19. fxe4 {[%clk 0:01:54.6]} 19... fxe4
{[%clk 0:01:14.1]} 20. Be2 {[%clk 0:01:55.1]} 20... Nd7 {[%clk 0:01:02.3]} 21.
Rxf8+ {[%clk 0:01:32.5]} 21... Bxf8 {[%clk 0:01:03.2]} 22. Nxc8 {[%clk
0:01:25.8]} 22... Rxc8 {[%clk 0:01:02.2]} 23. Rxc8 {[%clk 0:01:25.6]} 23... Qxc8
{[%clk 0:01:03.1]} 24. Bg4 {[%clk 0:01:25.9]} 24... Qd8 {[%clk 0:00:55]} 25.
Be6+ {[%clk 0:01:21]} 25... Kh8 {[%clk 0:00:53.3]} 26. b4 {[%clk 0:00:46]} 26...
Ne5 {[%clk 0:00:39.5]} 27. Qf1 {[%clk 0:00:23.3]} 27... Be7 {[%clk 0:00:22.2]}
28. Qf5 {[%clk 0:00:20.9]} 28... Qe8 {[%clk 0:00:22.1]} 29. Qxe4 {[%clk
0:00:20.1]} 29... Qxa4 {[%clk 0:00:21.9]} 30. h3 {[%clk 0:00:19.6]} 30... Qe8
{[%clk 0:00:20.5]} 31. Kh2 {[%clk 0:00:18.8]} 31... Bf6 {[%clk 0:00:20.7]} 32.
Qf4 {[%clk 0:00:15.6]} 32... Ng6 {[%clk 0:00:20.1]} 33. Qc4 {[%clk 0:00:10.2]}
33... Be5+ {[%clk 0:00:20.3]} 34. Kg1 {[%clk 0:00:10.2]} 34... Ne7 {[%clk
0:00:16]} 35. Qc7 {[%clk 0:00:09.5]} 35... h6 {[%clk 0:00:16.2]} 36. Bf2 {[%clk
0:00:08.8]} 36... b5 {[%clk 0:00:14]} 37. Qa7 {[%clk 0:00:07.9]} 37... Qf8
{[%clk 0:00:11.8]} 38. Qxa6 {[%clk 0:00:07.4]} 38... Qf4 {[%clk 0:00:12]} 39.
Qxb5 {[%clk 0:00:05.8]} 39... Qc1+ {[%clk 0:00:11.5]} 40. Qf1 {[%clk 0:00:05.1]}
40... Bh2+ {[%clk 0:00:11.8]} 41. Kxh2 {[%clk 0:00:06]} 41... Qxf1 {[%clk
0:00:12.7]} 42. Bg3 {[%clk 0:00:06.9]} 42... Nf5 {[%clk 0:00:12.3]} 0-1

[Event "Early-Titled-Tuesday-Blitz-October-03-2023"]
[Site "Chess.com"]
[Date "2023.10.03"]
[Round "6"]
[White "Tssunami"]
[Black "betta2004"]
[Result "1-0"]
[WhiteElo "2412"]
[BlackElo "2525"]
[TimeControl "180+1"]
[EndTime "9:07:29 PDT"]
[Termination "Tssunami won by checkmate"]

1. d4 {[%clk 0:03:00.9]} 1... e5 {[%clk 0:02:55.5]} 2. c3 {[%clk 0:02:57.5]}
2... exd4 {[%clk 0:02:55.1]} 3. cxd4 {[%clk 0:02:58.4]} 3... d5 {[%clk 0:02:56]}
4. Nc3 {[%clk 0:02:58.1]} 4... Nf6 {[%clk 0:02:56.4]} 5. Bg5 {[%clk 0:02:58.6]}
5... Bb4 {[%clk 0:02:56.4]} 6. e3 {[%clk 0:02:58]} 6... O-O {[%clk 0:02:56.4]}
7. a3 {[%clk 0:02:55.2]} 7... Bxc3+ {[%clk 0:02:56]} 8. bxc3 {[%clk 0:02:56.1]}
8... c6 {[%clk 0:02:56.5]} 9. Bd3 {[%clk 0:02:55.8]} 9... Nbd7 {[%clk
0:02:53.6]} 10. Ne2 {[%clk 0:02:55.8]} 10... Qa5 {[%clk 0:02:53.4]} 11. Qc2
{[%clk 0:02:55.2]} 11... Re8 {[%clk 0:02:53.2]} 12. O-O {[%clk 0:02:53.8]} 12...
Ne4 {[%clk 0:02:53.5]} 13. Bh4 {[%clk 0:02:52.7]} 13... f5 {[%clk 0:02:53.2]}
14. f3 {[%clk 0:02:50.9]} 14... Nd6 {[%clk 0:02:53.5]} 15. Bf2 {[%clk
0:02:49.5]} 15... Nf6 {[%clk 0:02:53]} 16. Ng3 {[%clk 0:02:43.4]} 16... g6
{[%clk 0:02:51]} 17. Rfe1 {[%clk 0:02:36.4]} 17... Bd7 {[%clk 0:02:50.9]} 18. e4
{[%clk 0:02:36.2]} 18... fxe4 {[%clk 0:02:51.2]} 19. fxe4 {[%clk 0:02:36.4]}
19... dxe4 {[%clk 0:02:51.5]} 20. Nxe4 {[%clk 0:02:31.6]} 20... Nfxe4 {[%clk
0:02:51.6]} 21. Bxe4 {[%clk 0:02:31.9]} 21... Nxe4 {[%clk 0:02:52.3]} 22. Rxe4
{[%clk 0:02:32.1]} 22... Bf5 {[%clk 0:02:53.1]} 23. Rxe8+ {[%clk 0:02:31.6]}
23... Rxe8 {[%clk 0:02:52.8]} 24. Qb3+ {[%clk 0:02:31.7]} 24... Qd5 {[%clk
0:02:53.1]} 25. c4 {[%clk 0:01:56.7]} 25... Qf7 {[%clk 0:02:50.4]} 26. d5 {[%clk
0:01:53.4]} 26... Re2 {[%clk 0:02:35.3]} 27. Re1 {[%clk 0:01:50.1]} 27... Rxe1+
{[%clk 0:02:25.3]} 28. Bxe1 {[%clk 0:01:51]} 28... cxd5 {[%clk 0:02:24.9]} 29.
cxd5 {[%clk 0:01:49.6]} 29... Be4 {[%clk 0:02:25.2]} 30. Bf2 {[%clk 0:01:43.3]}
30... Bxd5 {[%clk 0:02:24.3]} 31. Qg3 {[%clk 0:01:37.8]} 31... a6 {[%clk
0:02:10.9]} 32. Bd4 {[%clk 0:01:27.5]} 32... Qe8 {[%clk 0:02:01.3]} 33. h3
{[%clk 0:01:22.7]} 33... b5 {[%clk 0:01:50.8]} 34. Qc7 {[%clk 0:01:19.8]} 34...
Bf7 {[%clk 0:01:48.1]} 35. Qd6 {[%clk 0:01:13.2]} 35... Qe6 {[%clk 0:01:22.3]}
36. Qd8+ {[%clk 0:01:09.9]} 36... Be8 {[%clk 0:01:22.7]} 37. Qc7 {[%clk
0:01:04.2]} 37... Bf7 {[%clk 0:01:00.5]} 38. Kh2 {[%clk 0:01:03.2]} 38... h5
{[%clk 0:00:59.9]} 39. Qf4 {[%clk 0:00:59.7]} 39... Kh7 {[%clk 0:00:58.8]} 40.
Be3 {[%clk 0:00:53.2]} 40... Qd5 {[%clk 0:00:42]} 41. Bd4 {[%clk 0:00:40.5]}
41... Qe6 {[%clk 0:00:36.4]} 42. Qb8 {[%clk 0:00:38.7]} 42... g5 {[%clk
0:00:31.7]} 43. Qh8+ {[%clk 0:00:35.2]} 43... Kg6 {[%clk 0:00:32]} 44. Qg7+
{[%clk 0:00:25.4]} 44... Kf5 {[%clk 0:00:32.1]} 45. Qh7+ {[%clk 0:00:23.6]}
45... Bg6 {[%clk 0:00:30]} 46. Qc7 {[%clk 0:00:23.6]} 46... Ke4 {[%clk
0:00:27.8]} 47. Bb2 {[%clk 0:00:20.3]} 47... h4 {[%clk 0:00:23.2]} 48. Qc2+
{[%clk 0:00:19.6]} 48... Kd5 {[%clk 0:00:21.8]} 49. Qd2+ {[%clk 0:00:18.8]}
49... Kc6 {[%clk 0:00:18]} 50. Qxg5 {[%clk 0:00:19.2]} 50... Be4 {[%clk
0:00:13.6]} 51. Be5 {[%clk 0:00:18.3]} 51... Qa2 {[%clk 0:00:11]} 52. Qf6+
{[%clk 0:00:17.7]} 52... Kb7 {[%clk 0:00:09.1]} 53. Qe7+ {[%clk 0:00:16.9]}
53... Kb6 {[%clk 0:00:08.7]} 54. Qc7# {[%clk 0:00:16.7]} 1-0

[Event "Early-Titled-Tuesday-Blitz-October-03-2023"]
[Site "Chess.com"]
[Date "2023.10.03"]
[Round "6"]
[White "Mystery2007"]
[Black "jaskol95"]
[Result "0-1"]
[WhiteElo "2474"]
[BlackElo "2629"]
[TimeControl "180+1"]
[EndTime "9:07:30 PDT"]
[Termination "jaskol95 won by checkmate"]

1. e4 {[%clk 0:03:00.9]} 1... d5 {[%clk 0:03:00.1]} 2. exd5 {[%clk 0:03:00.6]}
2... Nf6 {[%clk 0:03:00.7]} 3. Nf3 {[%clk 0:02:58]} 3... Bg4 {[%clk 0:02:59.9]}
4. h3 {[%clk 0:02:56.6]} 4... Bxf3 {[%clk 0:02:59.5]} 5. Qxf3 {[%clk 0:02:57.2]}
5... Qxd5 {[%clk 0:02:59.9]} 6. Be2 {[%clk 0:02:40.6]} 6... Nc6 {[%clk
0:02:59.4]} 7. O-O {[%clk 0:02:35.8]} 7... Nd4 {[%clk 0:02:53.8]} 8. Qd3 {[%clk
0:02:26.9]} 8... Nxe2+ {[%clk 0:02:28.8]} 9. Qxe2 {[%clk 0:02:26.5]} 9... O-O-O
{[%clk 0:02:29.1]} 10. Nc3 {[%clk 0:02:23.5]} 10... Qc6 {[%clk 0:02:27.4]} 11.
d3 {[%clk 0:02:21.7]} 11... e6 {[%clk 0:02:27.4]} 12. Be3 {[%clk 0:02:19]} 12...
Bc5 {[%clk 0:02:16.4]} 13. a4 {[%clk 0:02:04.1]} 13... Bxe3 {[%clk 0:02:05.8]}
14. fxe3 {[%clk 0:02:05]} 14... Rhf8 {[%clk 0:01:59.1]} 15. Nb5 {[%clk
0:01:55.4]} 15... Kb8 {[%clk 0:01:57.6]} 16. Ra3 {[%clk 0:01:47.7]} 16... Rd5
{[%clk 0:01:37.7]} 17. e4 {[%clk 0:01:42.9]} 17... Rc5 {[%clk 0:01:22.7]} 18. c3
{[%clk 0:01:35.3]} 18... a6 {[%clk 0:01:15.6]} 19. Nd4 {[%clk 0:01:24.7]} 19...
Qd7 {[%clk 0:01:00.4]} 20. e5 {[%clk 0:01:00.2]} 20... Nd5 {[%clk 0:00:53.3]}
21. Qd2 {[%clk 0:00:50.7]} 21... Ne7 {[%clk 0:00:33.1]} 22. Nf3 {[%clk
0:00:32.4]} 22... Ng6 {[%clk 0:00:23.9]} 23. Qe2 {[%clk 0:00:22.4]} 23... Rd5
{[%clk 0:00:05.9]} 24. d4 {[%clk 0:00:22.3]} 24... c5 {[%clk 0:00:05]} 25. c4
{[%clk 0:00:16.3]} 25... Rxd4 {[%clk 0:00:05.5]} 26. Nxd4 {[%clk 0:00:16.7]}
26... Qxd4+ {[%clk 0:00:06.4]} 27. Qe3 {[%clk 0:00:14.4]} 27... Qxe5 {[%clk
0:00:06.8]} 28. Qf2 {[%clk 0:00:10.9]} 28... Qd4 {[%clk 0:00:04.3]} 29. Rf3
{[%clk 0:00:08.3]} 29... Qxf2+ {[%clk 0:00:04.1]} 30. R1xf2 {[%clk 0:00:09.2]}
30... f6 {[%clk 0:00:04.4]} 31. Rd2 {[%clk 0:00:09.6]} 31... Kc7 {[%clk
0:00:04.2]} 32. b3 {[%clk 0:00:07.2]} 32... Ne5 {[%clk 0:00:03.9]} 33. Re3
{[%clk 0:00:07.2]} 33... Rf7 {[%clk 0:00:04.3]} 34. Kf2 {[%clk 0:00:07.4]} 34...
Nc6 {[%clk 0:00:04.5]} 35. Red3 {[%clk 0:00:05.9]} 35... Nd4 {[%clk 0:00:04.9]}
36. Rd1 {[%clk 0:00:04.1]} 36... e5 {[%clk 0:00:05.3]} 37. Ke3 {[%clk
0:00:03.6]} 37... Rd7 {[%clk 0:00:05.5]} 38. Ke4 {[%clk 0:00:03.7]} 38... Kd6
{[%clk 0:00:05]} 39. g4 {[%clk 0:00:03.5]} 39... Ke6 {[%clk 0:00:05.5]} 40. Re1
{[%clk 0:00:01.9]} 40... g6 {[%clk 0:00:05.8]} 41. Red1 {[%clk 0:00:02.5]} 41...
f5+ {[%clk 0:00:06.3]} 42. gxf5+ {[%clk 0:00:03.4]} 42... gxf5+ {[%clk
0:00:07.1]} 43. Ke3 {[%clk 0:00:04.3]} 43... Rg7 {[%clk 0:00:06.5]} 44. Rf1
{[%clk 0:00:03.7]} 44... Rg3+ {[%clk 0:00:06.8]} 45. Kd2 {[%clk 0:00:04.3]}
45... Rg2+ {[%clk 0:00:07.4]} 46. Kd1 {[%clk 0:00:03.6]} 46... Ra2 {[%clk
0:00:07.7]} 47. Rd2 {[%clk 0:00:02.6]} 47... Ra1# {[%clk 0:00:08.3]} 0-1